Workbook

Sheet A
D2: DEPARTMENT OF REVENUE-CHARITABLE GAMING DIVISION
D3: UNAUTHORIZED DISTRIBUTION OF THIS LISTING IS PROHIBITED
D5: ARROW UNIVERSAL
A7: FORM | C7: COST/ | F7: UNIT | G7: GROSS | H7: PAYOUT | I7: TOP | J7: DEF. | K7: PICKLE | L7: OPER. | M7: OPER. | P7: APPROVAL
A8: NO. | B8: MFR. | C8: PER | D8: DESCRIPTION | E8: TYPE | F8: COUNT | G8: PROCEEDS | H8: PERCENT | I8: PRIZE | J8: PROFIT | K8: TAX | L8: COMM. | M8: REMIT | N8: CHECK | O8: CHECK2 | P8: DATE
A9: 7072A | B9: TP | C9: 0.25 | D9: FIVE ALARM | E9: 5 | F9: 2400 | G9: =+F9*C9 -> 600 | H9: 0.65 | I9: 50 | J9: 210 | K9: =+J9*0.1 -> 21 | L9: =SUM(J9*0.3) -> 63 | M9: =SUM(J9-L9) -> 147 | N9: =SUM((G9-J9)/G9) -> 0.65 | O9: =SUM(H9-N9) -> 0 | P9: 2020-01-22
A10: 7449A | B10: TP | C10: 0.5 | D10: FIVE ALARM | E10: 5 | F10: 4000 | G10: =+F10*C10 -> 2000 | H10: 0.731 | I10: 250 | J10: 538 | K10: =+J10*0.1 -> 53.8 | L10: =SUM(J10*0.3) -> 161.4 | M10: =SUM(J10-L10) -> 376.6 | N10: =SUM((G10-J10)/G10) -> 0.731 | O10: =SUM(H10-N10) -> 0 | P10: 2020-01-22
A11: 7090A | B11: TP | C11: 0.25 | D11: LUCK MAGNET | E11: 5 | F11: 2400 | G11: =+F11*C11 -> 600 | H11: 0.65 | I11: 50 | J11: 210 | K11: =+J11*0.1 -> 21 | L11: =SUM(J11*0.3) -> 63 | M11: =SUM(J11-L11) -> 147 | N11: =SUM((G11-J11)/G11) -> 0.65 | O11: =SUM(H11-N11) -> 0 | P11: 2020-01-22
A12: 7090A | B12: TP | C12: 0.25 | D12: LUCK MAGNET | E12: 5 | F12: 2400 | G12: =+F12*C12 -> 600 | H12: 0.65 | I12: 50 | J12: 210 | K12: =+J12*0.1 -> 21 | L12: =SUM(J12*0.3) -> 63 | M12: =SUM(J12-L12) -> 147 | N12: =SUM((G12-J12)/G12) -> 0.65 | O12: =SUM(H12-N12) -> 0 | P12: 2020-01-22
A13: 7090A | B13: TP | C13: 0.25 | D13: LUCK MAGNET | E13: 5 | F13: 2400 | G13: =+F13*C13 -> 600 | H13: 0.65 | I13: 50 | J13: 210 | K13: =+J13*0.1 -> 21 | L13: =SUM(J13*0.3) -> 63 | M13: =SUM(J13-L13) -> 147 | N13: =SUM((G13-J13)/G13) -> 0.65 | O13: =SUM(H13-N13) -> 0 | P13: 2020-01-22
A14: 7090A | B14: TP | C14: 0.25 | D14: LUCK MAGNET | E14: 5 | F14: 2400 | G14: =+F14*C14 -> 600 | H14: 0.65 | I14: 50 | J14: 210 | K14: =+J14*0.1 -> 21 | L14: =SUM(J14*0.3) -> 63 | M14: =SUM(J14-L14) -> 147 | N14: =SUM((G14-J14)/G14) -> 0.65 | O14: =SUM(H14-N14) -> 0 | P14: 2020-01-22
A15: 7090A | B15: TP | C15: 0.25 | D15: LUCK MAGNET | E15: 5 | F15: 2400 | G15: =+F15*C15 -> 600 | H15: 0.65 | I15: 50 | J15: 210 | K15: =+J15*0.1 -> 21 | L15: =SUM(J15*0.3) -> 63 | M15: =SUM(J15-L15) -> 147 | N15: =SUM((G15-J15)/G15) -> 0.65 | O15: =SUM(H15-N15) -> 0 | P15: 2020-01-22
A16: 7090A | B16: TP | C16: 0.25 | D16: LUCK MAGNET | E16: 5 | F16: 2400 | G16: =+F16*C16 -> 600 | H16: 0.65 | I16: 50 | J16: 210 | K16: =+J16*0.1 -> 21 | L16: =SUM(J16*0.3) -> 63 | M16: =SUM(J16-L16) -> 147 | N16: =SUM((G16-J16)/G16) -> 0.65 | O16: =SUM(H16-N16) -> 0 | P16: 2020-01-22
A17: 7451A | B17: TP | C17: 0.5 | D17: LUCK MAGNET | E17: 5 | F17: 4000 | G17: =+F17*C17 -> 2000 | H17: 0.731 | I17: 250 | J17: 538 | K17: =+J17*0.1 -> 53.8 | L17: =SUM(J17*0.3) -> 161.4 | M17: =SUM(J17-L17) -> 376.6 | N17: =SUM((G17-J17)/G17) -> 0.731 | O17: =SUM(H17-N17) -> 0 | P17: 2020-01-22
A18: 7081A | B18: TP | C18: 0.25 | D18: SERIOUS TABS | E18: 5 | F18: 2400 | G18: =+F18*C18 -> 600 | H18: 0.65 | I18: 50 | J18: 210 | K18: =+J18*0.1 -> 21 | L18: =SUM(J18*0.3) -> 63 | M18: =SUM(J18-L18) -> 147 | N18: =SUM((G18-J18)/G18) -> 0.65 | O18: =SUM(H18-N18) -> 0 | P18: 2020-01-22
A19: 7450A | B19: TP | C19: 0.5 | D19: SERIOUS TABS | E19: 5 | F19: 4000 | G19: =+F19*C19 -> 2000 | H19: 0.731 | I19: 250 | J19: 538 | K19: =+J19*0.1 -> 53.8 | L19: =SUM(J19*0.3) -> 161.4 | M19: =SUM(J19-L19) -> 376.6 | N19: =SUM((G19-J19)/G19) -> 0.731 | O19: =SUM(H19-N19) -> 0 | P19: 2020-01-22
A20: VFW150B | B20: AU | C20: 0.25 | D20: VFW | E20: 5 | F20: 4000 | G20: 1000 | H20: 0.65 | I20: 150 | J20: 350 | K20: =J20*0.1 -> 35 | L20: =J20*0.3 -> 105 | M20: =J20-L20 -> 245 | N20: =(G20-J20)/G20 -> 0.65 | O20: =H20-N20 -> 0 | P20: 2018-09-12 | Q20: =SUM((C20*F20)-G20) -> 0
A21: VFW250I | B21: AU | C21: 0.5 | D21: VFW | E21: 5 | F21: 4000 | G21: 2000 | H21: 0.7 | I21: 250 | J21: 600 | K21: =J21*0.1 -> 60 | L21: =J21*0.3 -> 180 | M21: =J21-L21 -> 420 | N21: =(G21-J21)/G21 -> 0.7 | O21: =H21-N21 -> 0 | P21: 2018-09-12 | Q21: 0
A22: FVW250J | B22: AU | C22: 1 | D22: VFW | E22: 5 | F22: 4000 | G22: 4000 | H22: 0.75 | I22: 250 | J22: 1000 | K22: =J22*0.1 -> 100 | L22: =J22*0.3 -> 300 | M22: =J22-L22 -> 700 | N22: =(G22-J22)/G22 -> 0.75 | O22: =H22-N22 -> 0 | P22: 2018-09-12 | Q22: 0
A23: VFW250K | B23: AU | C23: 1 | D23: VFW | E23: 5 | F23: 4000 | G23: 4000 | H23: 0.75 | I23: 250 | J23: 1000 | K23: =J23*0.1 -> 100 | L23: =J23*0.3 -> 300 | M23: =J23-L23 -> 700 | N23: =(G23-J23)/G23 -> 0.75 | O23: =H23-N23 -> 0 | P23: 2018-09-12 | Q23: 0
A24: VFW300B | B24: AU | C24: 1 | D24: VFW | E24: 5 | F24: 4000 | G24: 4000 | H24: 0.75 | I24: 300 | J24: 1000 | K24: =J24*0.1 -> 100 | L24: =J24*0.3 -> 300 | M24: =J24-L24 -> 700 | N24: =(G24-J24)/G24 -> 0.75 | O24: =H24-N24 -> 0 | P24: 2018-09-12 | Q24: 0
A25: VFW4 | B25: AU | C25: 1 | D25: VFW | E25: 3 | F25: 3132 | G25: 3132 | H25: 0.77 | I25: 205 | J25: 722 | K25: =J25*0.1 -> 72.2 | L25: =J25*0.3 -> 216.6 | M25: =J25-L25 -> 505.4 | N25: =(G25-J25)/G25 -> 0.7694763729 | O25: =H25-N25 -> 0.0005236270754 | P25: 2018-09-12 | Q25: 0
A26: VFW500H | B26: AU | C26: 1 | D26: VFW | E26: 5 | F26: 4000 | G26: 4000 | H26: 0.75 | I26: 500 | J26: 1000 | K26: =J26*0.1 -> 100 | L26: =J26*0.3 -> 300 | M26: =J26-L26 -> 700 | N26: =(G26-J26)/G26 -> 0.75 | O26: =H26-N26 -> 0 | P26: 2018-09-12 | Q26: 0
A27: VFW500I | B27: AU | C27: 1 | D27: VFW | E27: 5 | F27: 4000 | G27: 4000 | H27: 0.75 | I27: 500 | J27: 1000 | K27: =J27*0.1 -> 100 | L27: =J27*0.3 -> 300 | M27: =J27-L27 -> 700 | N27: =(G27-J27)/G27 -> 0.75 | O27: =H27-N27 -> 0 | P27: 2018-09-12 | Q27: 0
A28: VFW500J | B28: AU | C28: 1 | D28: VFW | E28: 5 | F28: 4000 | G28: 4000 | H28: 0.76 | I28: 500 | J28: 975 | K28: =J28*0.1 -> 97.5 | L28: =J28*0.3 -> 292.5 | M28: =J28-L28 -> 682.5 | N28: =(G28-J28)/G28 -> 0.75625 | O28: =H28-N28 -> 0.00375 | P28: 2018-09-12 | Q28: 0
A29: VFW599E | B29: AU | C29: 1 | D29: VFW | E29: 5 | F29: 4000 | G29: 4000 | H29: 0.75 | I29: 599 | J29: 998 | K29: =J29*0.1 -> 99.8 | L29: =J29*0.3 -> 299.4 | M29: =J29-L29 -> 698.6 | N29: =(G29-J29)/G29 -> 0.7505 | O29: =H29-N29 -> -0.0005 | P29: 2018-09-12 | Q29: 0
A30: VFW599F | B30: AU | C30: 1 | D30: VFW | E30: 5 | F30: 4000 | G30: 4000 | H30: 0.75 | I30: 599 | J30: 1000 | K30: =J30*0.1 -> 100 | L30: =J30*0.3 -> 300 | M30: =J30-L30 -> 700 | N30: =(G30-J30)/G30 -> 0.75 | O30: =H30-N30 -> 0 | P30: 2018-09-12 | Q30: 0
K31: =J31*0.1 -> 0 | L31: =J31*0.3 -> 0 | M31: =J31-L31 -> 0 | N31: =(G31-J31)/G31 ->  | O31: =H31-N31 -> 
K32: 0 | L32: 0 | M32: 0
K33: 0 | L33: 0 | M33: 0
K34: 0 | L34: 0 | M34: 0
K35: 0 | L35: 0 | M35: 0
K36: 0 | L36: 0 | M36: 0
K37: 0 | L37: 0 | M37: 0
K38: 0 | L38: 0 | M38: 0
K39: 0 | L39: 0 | M39: 0
K40: 0 | L40: 0 | M40: 0
K41: 0 | L41: 0 | M41: 0
K42: 0 | L42: 0 | M42: 0
K43: 0 | L43: 0 | M43: 0
K44: 0 | L44: 0 | M44: 0
K45: 0 | L45: 0 | M45: 0
K46: 0 | L46: 0 | M46: 0
K47: 0 | L47: 0 | M47: 0
K48: 0 | L48: 0 | M48: 0
K49: 0 | L49: 0 | M49: 0
K50: =SUM(J50*0.1) -> 0 | L50: =SUM(J50*0.3) -> 0 | M50: =SUM(J50-L50) -> 0 | N50: =SUM(G50-J50)/G50 ->  | O50: =SUM(H50-N50) -> 
K51: =SUM(J51*0.1) -> 0 | L51: =SUM(J51*0.3) -> 0 | M51: =SUM(J51-L51) -> 0 | N51: =SUM(G51-J51)/G51 ->  | O51: =SUM(H51-N51) -> 
K52: =SUM(J52*0.1) -> 0 | L52: =SUM(J52*0.3) -> 0 | M52: =SUM(J52-L52) -> 0 | N52: =SUM(G52-J52)/G52 ->  | O52: =SUM(H52-N52) -> 
K53: =SUM(J53*0.1) -> 0 | L53: =SUM(J53*0.3) -> 0 | M53: =SUM(J53-L53) -> 0 | N53: =SUM(G53-J53)/G53 ->  | O53: =SUM(H53-N53) -> 
K54: =SUM(J54*0.1) -> 0 | L54: =SUM(J54*0.3) -> 0 | M54: =SUM(J54-L54) -> 0 | N54: =SUM(G54-J54)/G54 ->  | O54: =SUM(H54-N54) -> 
K55: =J55*0.1 -> 0 | L55: =J55*0.3 -> 0 | M55: =J55-L55 -> 0 | N55: =(G55-J55)/G55 ->  | O55: =H55-N55 -> 
K56: 0 | L56: 0 | M56: 0
K57: 0 | L57: 0 | M57: 0
K58: 0 | L58: 0 | M58: 0
K59: 0 | L59: 0 | M59: 0
K60: 0 | L60: 0 | M60: 0
K61: 0 | L61: 0 | M61: 0
K62: 0 | L62: 0 | M62: 0
K63: 0 | L63: 0 | M63: 0
K64: 0 | L64: 0 | M64: 0
K65: 0 | L65: 0 | M65: 0
K66: 0 | L66: 0 | M66: 0
K67: 0 | L67: 0 | M67: 0
K68: 0 | L68: 0 | M68: 0
K69: 0 | L69: 0 | M69: 0
K70: 0 | L70: 0 | M70: 0
K71: 0 | L71: 0 | M71: 0
K72: 0 | L72: 0 | M72: 0
K73: 0 | L73: 0 | M73: 0
K74: 0 | L74: 0 | M74: 0
K75: 0 | L75: 0 | M75: 0
K76: 0 | L76: 0 | M76: 0
K77: 0 | L77: 0 | M77: 0
K78: 0 | L78: 0 | M78: 0
K79: 0 | L79: 0 | M79: 0
K80: 0 | L80: 0 | M80: 0
K81: 0 | L81: 0 | M81: 0
K82: 0 | L82: 0 | M82: 0
K83: 0 | L83: 0 | M83: 0
K84: 0 | L84: 0 | M84: 0
K85: 0 | L85: 0 | M85: 0
K86: 0 | L86: 0 | M86: 0
K87: =J87*0.1 -> 0 | L87: =J87*0.3 -> 0 | M87: =J87-L87 -> 0 | N87: =(G87-J87)/G87 ->  | O87: =H87-N87 -> 
K88: 0 | L88: 0 | M88: 0
K89: 0 | L89: 0 | M89: 0
K90: 0 | L90: 0 | M90: 0
K91: 0 | L91: 0 | M91: 0
K92: 0 | L92: 0 | M92: 0
K93: 0 | L93: 0 | M93: 0
K94: 0 | L94: 0 | M94: 0
K95: 0 | L95: 0 | M95: 0
K96: 0 | L96: 0 | M96: 0
K97: 0 | L97: 0 | M97: 0
K98: 0 | L98: 0 | M98: 0
K99: 0 | L99: 0 | M99: 0
K100: 0 | L100: 0 | M100: 0
K101: 0 | L101: 0 | M101: 0
K102: 0 | L102: 0 | M102: 0
K103: 0 | L103: 0 | M103: 0
K104: 0 | L104: 0 | M104: 0
K105: 0 | L105: 0 | M105: 0
K106: 0 | L106: 0 | M106: 0
K107: 0 | L107: 0 | M107: 0
K108: 0 | L108: 0 | M108: 0
K109: 0 | L109: 0 | M109: 0
K110: 0 | L110: 0 | M110: 0
K111: 0 | L111: 0 | M111: 0
K112: 0 | L112: 0 | M112: 0
K113: 0 | L113: 0 | M113: 0
K114: 0 | L114: 0 | M114: 0
K115: 0 | L115: 0 | M115: 0
K116: 0 | L116: 0 | M116: 0
K117: 0 | L117: 0 | M117: 0
K118: 0 | L118: 0 | M118: 0
K119: =J119*0.1 -> 0 | L119: =J119*0.3 -> 0 | M119: =J119-L119 -> 0 | N119: =(G119-J119)/G119 ->  | O119: =H119-N119 -> 
K120: 0 | L120: 0 | M120: 0
K121: 0 | L121: 0 | M121: 0
K122: 0 | L122: 0 | M122: 0
K123: 0 | L123: 0 | M123: 0
K124: 0 | L124: 0 | M124: 0
K125: 0 | L125: 0 | M125: 0
K126: 0 | L126: 0 | M126: 0
K127: 0 | L127: 0 | M127: 0
K128: 0 | L128: 0 | M128: 0
K129: 0 | L129: 0 | M129: 0
K130: 0 | L130: 0 | M130: 0
K131: 0 | L131: 0 | M131: 0
K132: 0 | L132: 0 | M132: 0
K133: 0 | L133: 0 | M133: 0
K134: 0 | L134: 0 | M134: 0
K135: 0 | L135: 0 | M135: 0
K136: 0 | L136: 0 | M136: 0
K137: 0 | L137: 0 | M137: 0
K138: 0 | L138: 0 | M138: 0
K139: 0 | L139: 0 | M139: 0
K140: =SUM(J140*0.1) -> 0 | L140: =SUM(J140*0.3) -> 0 | M140: =SUM(J140-L140) -> 0 | N140: =SUM(G140-J140)/G140 ->  | O140: =SUM(H140-N140) -> 
K141: =J141*0.1 -> 0 | L141: =J141*0.3 -> 0 | M141: =J141-L141 -> 0 | N141: =(G141-J141)/G141 ->  | O141: =H141-N141 -> 
K142: 0 | L142: 0 | M142: 0
K143: 0 | L143: 0 | M143: 0
K144: 0 | L144: 0 | M144: 0
K145: 0 | L145: 0 | M145: 0
K146: 0 | L146: 0 | M146: 0
K147: 0 | L147: 0 | M147: 0
K148: 0 | L148: 0 | M148: 0
K149: 0 | L149: 0 | M149: 0
K150: 0 | L150: 0 | M150: 0
K151: 0 | L151: 0 | M151: 0
K152: 0 | L152: 0 | M152: 0
K153: 0 | L153: 0 | M153: 0
K154: 0 | L154: 0 | M154: 0
K155: 0 | L155: 0 | M155: 0
K156: =SUM(J156*0.1) -> 0 | L156: =SUM(J156*0.3) -> 0 | M156: =SUM(J156-L156) -> 0 | N156: =SUM(G156-J156)/G156 ->  | O156: =SUM(H156-N156) -> 
K157: =J157*0.1 -> 0 | L157: =J157*0.3 -> 0 | M157: =J157-L157 -> 0 | N157: =(G157-J157)/G157 ->  | O157: =H157-N157 -> 
K158: 0 | L158: 0 | M158: 0
K159: 0 | L159: 0 | M159: 0
K160: 0 | L160: 0 | M160: 0
K161: 0 | L161: 0 | M161: 0
K162: 0 | L162: 0 | M162: 0
K163: 0 | L163: 0 | M163: 0
K164: 0 | L164: 0 | M164: 0
K165: 0 | L165: 0 | M165: 0
K166: 0 | L166: 0 | M166: 0
K167: =SUM(J167*0.1) -> 0 | L167: =SUM(J167*0.3) -> 0 | M167: =SUM(J167-L167) -> 0 | N167: =SUM(G167-J167)/G167 ->  | O167: =SUM(H167-N167) -> 
K168: =SUM(J168*0.1) -> 0 | L168: =SUM(J168*0.3) -> 0 | M168: =SUM(J168-L168) -> 0 | N168: =SUM(G168-J168)/G168 ->  | O168: =SUM(H168-N168) -> 
K169: =J169*0.1 -> 0 | L169: =J169*0.3 -> 0 | M169: =J169-L169 -> 0 | N169: =(G169-J169)/G169 ->  | O169: =H169-N169 -> 
K170: 0 | L170: 0 | M170: 0
K171: 0 | L171: 0 | M171: 0
K172: 0 | L172: 0 | M172: 0
K173: 0 | L173: 0 | M173: 0
K174: 0 | L174: 0 | M174: 0
K175: 0 | L175: 0 | M175: 0
K176: 0 | L176: 0 | M176: 0
K177: 0 | L177: 0 | M177: 0
K178: 0 | L178: 0 | M178: 0
K179: 0 | L179: 0 | M179: 0
K180: 0 | L180: 0 | M180: 0
K181: 0 | L181: 0 | M181: 0
K182: 0 | L182: 0 | M182: 0
K183: 0 | L183: 0 | M183: 0
K184: 0 | L184: 0 | M184: 0
K185: =SUM(J185*0.1) -> 0 | L185: =SUM(J185*0.3) -> 0 | M185: =SUM(J185-L185) -> 0 | N185: =SUM(G185-J185)/G185 ->  | O185: =SUM(H185-N185) -> 
K186: =J186*0.1 -> 0 | L186: =J186*0.3 -> 0 | M186: =J186-L186 -> 0 | N186: =(G186-J186)/G186 ->  | O186: =H186-N186 -> 
K187: 0 | L187: 0 | M187: 0
K188: 0 | L188: 0 | M188: 0
K189: 0 | L189: 0 | M189: 0
K190: 0 | L190: 0 | M190: 0
K191: 0 | L191: 0 | M191: 0
K192: 0 | L192: 0 | M192: 0
K193: 0 | L193: 0 | M193: 0
K194: 0 | L194: 0 | M194: 0
K195: 0 | L195: 0 | M195: 0
K196: 0 | L196: 0 | M196: 0
K197: 0 | L197: 0 | M197: 0
K198: 0 | L198: 0 | M198: 0
K199: 0 | L199: 0 | M199: 0
K200: 0 | L200: 0 | M200: 0
K201: 0 | L201: 0 | M201: 0
K202: 0 | L202: 0 | M202: 0
K203: 0 | L203: 0 | M203: 0
... 1341 more rows
